[Event "*** Titled Tuesday Blitz"]
[Site "Chess.com"]
[Date "2020.12.01"]
[Round "2"]
[White "ondoko"]
[Black "Nemsko"]
[Result "0-1"]
[WhiteElo "2101"]
[BlackElo "2385"]
[TimeControl "180+1"]
[EndTime "10:16:21 PST"]
[Termination "Nemsko won by resignation"]

1. e4 {[%clk 0:03:00.2]} 1... e5 {[%clk 0:02:59.1]} 2. Nf3 {[%clk 0:02:59]} 2...
Nc6 {[%clk 0:02:59.7]} 3. d4 {[%clk 0:02:57.9]} 3... exd4 {[%clk 0:02:59.6]} 4.
Nxd4 {[%clk 0:02:58.8]} 4... Nf6 {[%clk 0:03:00.1]} 5. Nxc6 {[%clk 0:02:58.5]}
5... bxc6 {[%clk 0:03:01]} 6. e5 {[%clk 0:02:59]} 6... Nd5 {[%clk 0:03:01.4]} 7.
Qe2 {[%clk 0:02:59.4]} 7... Qe7 {[%clk 0:02:59.2]} 8. c4 {[%clk 0:02:58.7]} 8...
Ba6 {[%clk 0:02:59.1]} 9. b3 {[%clk 0:02:52.3]} 9... Nb6 {[%clk 0:02:55.8]} 10.
Bb2 {[%clk 0:01:53.1]} 10... d6 {[%clk 0:02:39]} 11. exd6 {[%clk 0:01:49.6]}
11... Qxe2+ {[%clk 0:02:39]} 12. Bxe2 {[%clk 0:01:49.4]} 12... cxd6 {[%clk
0:02:39.3]} 13. O-O {[%clk 0:01:36.4]} 13... O-O-O {[%clk 0:02:33]} 14. Rd1
{[%clk 0:01:26.9]} 14... f6 {[%clk 0:02:26.1]} 15. Bf3 {[%clk 0:01:25.6]} 15...
Bb7 {[%clk 0:02:19.2]} 16. Nc3 {[%clk 0:01:25]} 16... Be7 {[%clk 0:02:17.2]} 17.
Ne4 {[%clk 0:01:18.9]} 17... Kb8 {[%clk 0:02:09.5]} 18. Ba3 {[%clk 0:01:15]}
18... Kc7 {[%clk 0:02:06.4]} 19. Re1 {[%clk 0:01:14.1]} 19... Nc8 {[%clk
0:01:59.8]} 20. Ng3 {[%clk 0:01:12.6]} 20... g6 {[%clk 0:01:58.7]} 21. Re6
{[%clk 0:01:08.8]} 21... Rde8 {[%clk 0:01:52.6]} 22. Bb2 {[%clk 0:01:05.9]}
22... Rhf8 {[%clk 0:01:49.6]} 23. Rae1 {[%clk 0:01:05.6]} 23... Kd7 {[%clk
0:01:46.7]} 24. h4 {[%clk 0:00:44.2]} 24... Bd8 {[%clk 0:01:40.7]} 25. Rxe8
{[%clk 0:00:43.3]} 25... Rxe8 {[%clk 0:01:41.6]} 26. Rd1 {[%clk 0:00:39.9]}
26... h5 {[%clk 0:01:33.6]} 27. Ne4 {[%clk 0:00:39.5]} 27... Ke6 {[%clk
0:01:20.4]} 28. g3 {[%clk 0:00:37.4]} 28... Be7 {[%clk 0:01:13.4]} 29. Bg2
{[%clk 0:00:37.1]} 29... Kf7 {[%clk 0:01:11.7]} 30. Ba3 {[%clk 0:00:34.5]} 30...
Rd8 {[%clk 0:01:05.3]} 31. Nc3 {[%clk 0:00:31.4]} 31... d5 {[%clk 0:00:58.5]}
32. cxd5 {[%clk 0:00:31.1]} 32... Bxa3 {[%clk 0:00:57]} 33. dxc6 {[%clk
0:00:28.7]} 33... Rxd1+ {[%clk 0:00:57.9]} 34. Nxd1 {[%clk 0:00:28.7]} 34... Ba6
{[%clk 0:00:58.5]} 0-1

[Event "*** Titled Tuesday Blitz"]
[Site "Chess.com"]
[Date "2020.12.01"]
[Round "2"]
[White "arjwezhrtdrz"]
[Black "Abdimalik_Abdisalimov"]
[Result "0-1"]
[WhiteElo "2321"]
[BlackElo "2732"]
[TimeControl "180+1"]
[EndTime "10:16:23 PST"]
[Termination "Abdimalik_Abdisalimov won by resignation"]

1. e4 {[%clk 0:02:59.6]} 1... e5 {[%clk 0:02:57.2]} 2. Nf3 {[%clk 0:02:58.9]}
2... Nc6 {[%clk 0:02:55.9]} 3. Nc3 {[%clk 0:02:59.5]} 3... Nf6 {[%clk
0:02:53.6]} 4. Bb5 {[%clk 0:02:59.1]} 4... Bb4 {[%clk 0:02:41.3]} 5. O-O {[%clk
0:02:58.2]} 5... O-O {[%clk 0:02:36.5]} 6. d3 {[%clk 0:02:57.2]} 6... d6 {[%clk
0:02:26.3]} 7. Bg5 {[%clk 0:02:55.1]} 7... Bxc3 {[%clk 0:02:19.1]} 8. bxc3
{[%clk 0:02:54.8]} 8... Ne7 {[%clk 0:02:18.5]} 9. Nh4 {[%clk 0:02:46.6]} 9...
Ng6 {[%clk 0:02:06.9]} 10. Nxg6 {[%clk 0:02:43.6]} 10... hxg6 {[%clk 0:01:49.1]}
11. Bc4 {[%clk 0:02:31.3]} 11... Qe8 {[%clk 0:01:42.4]} 12. Bxf6 {[%clk
0:02:28.9]} 12... gxf6 {[%clk 0:01:41.1]} 13. f4 {[%clk 0:02:29.4]} 13... b5
{[%clk 0:01:31.9]} 14. Bb3 {[%clk 0:02:26.8]} 14... a5 {[%clk 0:01:26.3]} 15. a3
{[%clk 0:02:26.9]} 15... exf4 {[%clk 0:01:20.4]} 16. Rxf4 {[%clk 0:02:22.4]}
16... a4 {[%clk 0:01:15.4]} 17. Ba2 {[%clk 0:02:20.3]} 17... Qe5 {[%clk
0:01:08]} 18. Qd2 {[%clk 0:02:20.4]} 18... Be6 {[%clk 0:01:01.6]} 19. d4 {[%clk
0:02:10.6]} 19... Qg5 {[%clk 0:00:58.2]} 20. h4 {[%clk 0:01:47]} 20... Qh5
{[%clk 0:00:50.6]} 21. Qf2 {[%clk 0:01:46.6]} 21... Bxa2 {[%clk 0:00:42.8]} 22.
Rxa2 {[%clk 0:01:46.7]} 22... Qd1+ {[%clk 0:00:39.5]} 23. Kh2 {[%clk 0:01:10.5]}
23... Qb1 {[%clk 0:00:39]} 24. Rxf6 {[%clk 0:00:56.9]} 24... Qxa2 {[%clk
0:00:38.7]} 25. h5 {[%clk 0:00:54.6]} 25... Kg7 {[%clk 0:00:33.9]} 26. h6+
{[%clk 0:00:53.4]} 26... Kxh6 {[%clk 0:00:29.3]} 27. Rf3 {[%clk 0:00:43.2]}
27... Kg7 {[%clk 0:00:27.2]} 0-1

[Event "*** Titled Tuesday Blitz"]
[Site "Chess.com"]
[Date "2020.12.01"]
[Round "2"]
[White "DinaBelenkaya"]
[Black "theredking89"]
[Result "0-1"]
[WhiteElo "2389"]
[BlackElo "2653"]
[TimeControl "180+1"]
[EndTime "10:16:24 PST"]
[Termination "theredking89 won by resignation"]

1. e4 {[%clk 0:03:00.7]} 1... c5 {[%clk 0:02:58.4]} 2. Nc3 {[%clk 0:02:57.2]}
2... e6 {[%clk 0:02:53.8]} 3. g3 {[%clk 0:02:53.7]} 3... Nc6 {[%clk 0:02:50]} 4.
Bg2 {[%clk 0:02:52.2]} 4... Nf6 {[%clk 0:02:48.2]} 5. Nge2 {[%clk 0:02:48.4]}
5... Qc7 {[%clk 0:02:27.4]} 6. O-O {[%clk 0:02:47.6]} 6... a6 {[%clk 0:02:17.3]}
7. d4 {[%clk 0:02:47]} 7... cxd4 {[%clk 0:02:18.2]} 8. Nxd4 {[%clk 0:02:47.5]}
8... Nxd4 {[%clk 0:02:16.7]} 9. Qxd4 {[%clk 0:02:46.9]} 9... Bc5 {[%clk
0:02:17.2]} 10. Qd3 {[%clk 0:02:45.2]} 10... d6 {[%clk 0:01:50.9]} 11. Bg5
{[%clk 0:02:43.5]} 11... Nd7 {[%clk 0:01:47.2]} 12. Rad1 {[%clk 0:02:41]} 12...
Ne5 {[%clk 0:01:45.4]} 13. Qe2 {[%clk 0:02:41]} 13... O-O {[%clk 0:01:37.4]} 14.
Bf4 {[%clk 0:02:38.5]} 14... b5 {[%clk 0:01:34.7]} 15. a3 {[%clk 0:02:09.2]}
15... Bb7 {[%clk 0:01:34.8]} 16. Kh1 {[%clk 0:02:05.4]} 16... Rac8 {[%clk
0:01:34.3]} 17. a4 {[%clk 0:01:31.7]} 17... b4 {[%clk 0:01:29.1]} 18. Nb1 {[%clk
0:01:31.7]} 18... a5 {[%clk 0:01:27.3]} 19. Nd2 {[%clk 0:01:31.6]} 19... Qc6
{[%clk 0:01:27.5]} 20. Bxe5 {[%clk 0:01:25.4]} 20... dxe5 {[%clk 0:01:19]} 21.
b3 {[%clk 0:01:25.7]} 21... Ba6 {[%clk 0:01:16.3]} 22. Nc4 {[%clk 0:01:25.9]}
22... Bd4 {[%clk 0:01:15.9]} 23. f4 {[%clk 0:01:10.9]} 23... Bxc4 {[%clk
0:01:16]} 24. Qxc4 {[%clk 0:01:02.3]} 24... Qxc4 {[%clk 0:01:16.9]} 25. bxc4
{[%clk 0:01:02.9]} 25... Rxc4 {[%clk 0:01:17.7]} 26. Rd2 {[%clk 0:01:00.2]}
26... Rfc8 {[%clk 0:01:13.1]} 27. fxe5 {[%clk 0:00:59.6]} 27... Bxe5 {[%clk
0:01:14]} 28. Rfd1 {[%clk 0:00:59.1]} 28... g6 {[%clk 0:01:11.3]} 29. Rd8+
{[%clk 0:00:58.8]} 29... Kg7 {[%clk 0:01:09.6]} 30. Rxc8 {[%clk 0:00:58.5]}
30... Rxc8 {[%clk 0:01:10.5]} 31. Rd2 {[%clk 0:00:58.9]} 31... b3 {[%clk
0:01:09.4]} 32. c4 {[%clk 0:00:27.8]} 32... b2 {[%clk 0:01:05.2]} 33. Rd1 {[%clk
0:00:27.9]} 33... Rxc4 {[%clk 0:01:04.8]} 34. Bf3 {[%clk 0:00:27]} 34... Rc1
{[%clk 0:01:03.4]} 0-1

[Event "*** Titled Tuesday Blitz"]
[Site "Chess.com"]
[Date "2020.12.01"]
[Round "2"]
[White "bazar-wokzal"]
[Black "PSvidler"]
[Result "0-1"]
[WhiteElo "2542"]
[BlackElo "2858"]
[TimeControl "180+1"]
[EndTime "10:16:25 PST"]
[Termination "PSvidler won on time"]

1. e4 {[%clk 0:03:00.1]} 1... c6 {[%clk 0:02:59.6]} 2. d4 {[%clk 0:02:59.5]}
2... d5 {[%clk 0:02:59.6]} 3. e5 {[%clk 0:02:59.6]} 3... Bf5 {[%clk 0:02:59.3]}
4. Nc3 {[%clk 0:02:59.3]} 4... e6 {[%clk 0:02:59.2]} 5. g4 {[%clk 0:02:59.8]}
5... Bg6 {[%clk 0:02:59.3]} 6. Nge2 {[%clk 0:03:00.5]} 6... Bb4 {[%clk
0:02:58.4]} 7. Bg2 {[%clk 0:02:59.5]} 7... Ne7 {[%clk 0:02:51.5]} 8. Be3 {[%clk
0:02:58.3]} 8... c5 {[%clk 0:02:48.8]} 9. O-O {[%clk 0:02:51.3]} 9... h5 {[%clk
0:02:26.4]} 10. h3 {[%clk 0:02:45]} 10... hxg4 {[%clk 0:02:26]} 11. hxg4 {[%clk
0:02:45.2]} 11... cxd4 {[%clk 0:02:24.3]} 12. Nxd4 {[%clk 0:02:44.9]} 12... a6
{[%clk 0:02:24]} 13. f4 {[%clk 0:02:41.4]} 13... Bxc3 {[%clk 0:02:17.9]} 14.
bxc3 {[%clk 0:02:41.1]} 14... Be4 {[%clk 0:02:18.4]} 15. f5 {[%clk 0:02:28.2]}
15... Qd7 {[%clk 0:02:11.1]} 16. Qe2 {[%clk 0:02:13.9]} 16... Nbc6 {[%clk
0:02:07.1]} 17. fxe6 {[%clk 0:02:00.2]} 17... fxe6 {[%clk 0:02:06.3]} 18. Bf4
{[%clk 0:01:34]} 18... Bxg2 {[%clk 0:02:03.9]} 19. Kxg2 {[%clk 0:01:32.1]} 19...
Ng6 {[%clk 0:01:59]} 20. Bg3 {[%clk 0:01:31.9]} 20... Rc8 {[%clk 0:01:49.2]} 21.
Rae1 {[%clk 0:01:13.9]} 21... Nxd4 {[%clk 0:01:47.3]} 22. cxd4 {[%clk
0:01:12.9]} 22... Qa4 {[%clk 0:01:47.1]} 23. Qd3 {[%clk 0:00:28.6]} 23... Qxc2+
{[%clk 0:01:45]} 24. Qxc2 {[%clk 0:00:27.6]} 24... Rxc2+ {[%clk 0:01:45.5]} 25.
Rf2 {[%clk 0:00:27.9]} 25... Rxf2+ {[%clk 0:01:43.5]} 26. Kxf2 {[%clk
0:00:28.4]} 26... Kd7 {[%clk 0:01:43.4]} 27. Rb1 {[%clk 0:00:23.9]} 27... b5
{[%clk 0:01:41.6]} 28. a4 {[%clk 0:00:23.7]} 28... Rb8 {[%clk 0:01:41.2]} 29.
axb5 {[%clk 0:00:23.4]} 29... axb5 {[%clk 0:01:39.7]} 30. Ra1 {[%clk 0:00:22.2]}
30... Rb7 {[%clk 0:01:39.6]} 31. Ke3 {[%clk 0:00:18.5]} 31... b4 {[%clk
0:01:39.2]} 32. Be1 {[%clk 0:00:18]} 32... Ne7 {[%clk 0:01:36.1]} 33. Ra8 {[%clk
0:00:13.7]} 33... b3 {[%clk 0:01:35]} 34. Ra1 {[%clk 0:00:07.2]} 34... b2 {[%clk
0:01:34.8]} 35. Rb1 {[%clk 0:00:07.6]} 35... Rb3+ {[%clk 0:01:35.3]} 36. Kd2
{[%clk 0:00:02.9]} 36... Nc6 {[%clk 0:01:34.8]} 37. Bf2 {[%clk 0:00:02.1]} 37...
Na5 {[%clk 0:01:34.9]} 38. Kc2 {[%clk 0:00:02]} 38... Rf3 {[%clk 0:01:33.4]} 0-1

[Event "*** Titled Tuesday Blitz"]
[Site "Chess.com"]
[Date "2020.12.01"]
[Round "2"]
[White "underdogchss"]
[Black "Ariadna_Atreides"]
[Result "1-0"]
[WhiteElo "2371"]
[BlackElo "2075"]
[TimeControl "180+1"]
[EndTime "10:16:26 PST"]
[Termination "underdogchss won by resignation"]

1. d4 {[%clk 0:03:00.5]} 1... Nf6 {[%clk 0:02:58.4]} 2. Nf3 {[%clk 0:03:00.1]}
2... d5 {[%clk 0:02:56.7]} 3. c4 {[%clk 0:02:59]} 3... e6 {[%clk 0:02:56]} 4.
Nc3 {[%clk 0:02:58.7]} 4... Bb4 {[%clk 0:02:54.1]} 5. Bg5 {[%clk 0:02:56.1]}
5... h6 {[%clk 0:02:52.1]} 6. Bxf6 {[%clk 0:02:55.5]} 6... Qxf6 {[%clk
0:02:48.8]} 7. e3 {[%clk 0:02:48.6]} 7... O-O {[%clk 0:02:41.2]} 8. Qb3 {[%clk
0:02:46.8]} 8... Bxc3+ {[%clk 0:02:23.5]} 9. Qxc3 {[%clk 0:02:40.3]} 9... c5
{[%clk 0:02:05.1]} 10. cxd5 {[%clk 0:02:39.9]} 10... cxd4 {[%clk 0:02:04.8]} 11.
Qxd4 {[%clk 0:02:40.5]} 11... Qxd4 {[%clk 0:02:02.3]} 12. Nxd4 {[%clk
0:02:41.4]} 12... exd5 {[%clk 0:02:02.4]} 13. Rc1 {[%clk 0:02:41]} 13... Be6
{[%clk 0:01:19]} 14. Bb5 {[%clk 0:02:31.6]} 14... a6 {[%clk 0:01:14.3]} 15. Ba4
{[%clk 0:02:24.1]} 15... b5 {[%clk 0:01:11.7]} 16. Bb3 {[%clk 0:02:14.1]} 16...
Nd7 {[%clk 0:01:11]} 17. Bd1 {[%clk 0:01:13.6]} 17... Rac8 {[%clk 0:00:52.6]}
18. Rxc8 {[%clk 0:01:13.1]} 18... Rxc8 {[%clk 0:00:51.9]} 19. Kd2 {[%clk
0:01:14]} 19... Ne5 {[%clk 0:00:47.2]} 20. b3 {[%clk 0:01:13.7]} 20... Kf8
{[%clk 0:00:39.5]} 21. Be2 {[%clk 0:01:13]} 21... Ke7 {[%clk 0:00:38.8]} 22. h3
{[%clk 0:01:09.7]} 22... Nd7 {[%clk 0:00:27.4]} 23. Ra1 {[%clk 0:01:03.9]} 23...
Nc5 {[%clk 0:00:25.8]} 24. f3 {[%clk 0:01:02.7]} 24... Kd6 {[%clk 0:00:21.3]}
25. h4 {[%clk 0:01:02.1]} 25... f6 {[%clk 0:00:17.6]} 26. Rc1 {[%clk 0:01:00.9]}
26... Rc7 {[%clk 0:00:12.6]} 27. b4 {[%clk 0:00:56.8]} 27... Nd7 {[%clk
0:00:11.8]} 28. Rxc7 {[%clk 0:00:57.3]} 28... Kxc7 {[%clk 0:00:11.3]} 29. Nxe6+
{[%clk 0:00:58.2]} 29... Kd6 {[%clk 0:00:11.6]} 30. Nxg7 {[%clk 0:00:58.8]} 1-0

[Event "*** Titled Tuesday Blitz"]
[Site "Chess.com"]
[Date "2020.12.01"]
[Round "2"]
[White "HackingKid98"]
[Black "Vanina1989"]
[Result "0-1"]
[WhiteElo "2346"]
[BlackElo "2637"]
[TimeControl "180+1"]
[EndTime "10:16:31 PST"]
[Termination "Vanina1989 won on time"]

1. d4 {[%clk 0:03:00.5]} 1... d5 {[%clk 0:02:59]} 2. c4 {[%clk 0:02:57.6]} 2...
c6 {[%clk 0:02:59.5]} 3. cxd5 {[%clk 0:02:52.6]} 3... cxd5 {[%clk 0:02:58.9]} 4.
Bf4 {[%clk 0:02:53.5]} 4... e6 {[%clk 0:02:58.8]} 5. Nc3 {[%clk 0:02:51.8]} 5...
Bd6 {[%clk 0:02:58.7]} 6. Bxd6 {[%clk 0:02:45.2]} 6... Qxd6 {[%clk 0:02:58.2]}
7. e3 {[%clk 0:02:46.1]} 7... Nf6 {[%clk 0:02:56.2]} 8. Nb5 {[%clk 0:02:35.8]}
8... Qe7 {[%clk 0:02:52]} 9. Rc1 {[%clk 0:02:27.9]} 9... Nc6 {[%clk 0:02:52.1]}
10. Bd3 {[%clk 0:02:22.8]} 10... O-O {[%clk 0:02:50]} 11. Ne2 {[%clk 0:02:21.8]}
11... a6 {[%clk 0:02:46]} 12. Nbc3 {[%clk 0:02:20]} 12... e5 {[%clk 0:02:46.5]}
13. dxe5 {[%clk 0:02:17.3]} 13... Qxe5 {[%clk 0:02:46.7]} 14. O-O {[%clk
0:01:59.9]} 14... Bg4 {[%clk 0:02:46.3]} 15. Qd2 {[%clk 0:01:45.9]} 15... Rad8
{[%clk 0:02:42.2]} 16. Nd4 {[%clk 0:01:44.3]} 16... Ne7 {[%clk 0:02:39]} 17. Na4
{[%clk 0:01:24.2]} 17... Bd7 {[%clk 0:02:32.4]} 18. Nc5 {[%clk 0:01:23]} 18...
Bc8 {[%clk 0:02:31.1]} 19. Be2 {[%clk 0:01:16.3]} 19... Nf5 {[%clk 0:02:25.4]}
20. Nxf5 {[%clk 0:01:11.3]} 20... Qxf5 {[%clk 0:02:25.5]} 21. Nb3 {[%clk
0:01:07.6]} 21... Ne4 {[%clk 0:02:25]} 22. Qd4 {[%clk 0:00:59.8]} 22... Rd6
{[%clk 0:02:24.6]} 23. Nc5 {[%clk 0:00:51.8]} 23... Ng5 {[%clk 0:02:12.6]} 24.
Qf4 {[%clk 0:00:44.6]} 24... Qxf4 {[%clk 0:02:12.2]} 25. exf4 {[%clk 0:00:45.3]}
25... Ne6 {[%clk 0:02:12.6]} 26. Nd3 {[%clk 0:00:39.5]} 26... Bd7 {[%clk
0:02:10.8]} 27. g3 {[%clk 0:00:28]} 27... Nd4 {[%clk 0:02:09.1]} 28. Rfe1 {[%clk
0:00:21.4]} 28... Bf5 {[%clk 0:02:08]} 29. Ne5 {[%clk 0:00:19]} 29... Re8 {[%clk
0:02:05.5]} 30. Bd3 {[%clk 0:00:17.8]} 30... Bxd3 {[%clk 0:01:54.6]} 31. Nxd3
{[%clk 0:00:14.2]} 31... Nf3+ {[%clk 0:01:54.4]} 32. Kg2 {[%clk 0:00:14.1]}
32... Nxe1+ {[%clk 0:01:54.6]} 33. Nxe1 {[%clk 0:00:15]} 33... Rc6 {[%clk
0:01:54.5]} 34. Rd1 {[%clk 0:00:14.1]} 34... h6 {[%clk 0:01:54.4]} 35. Nf3
{[%clk 0:00:12.9]} 35... Rc2 {[%clk 0:01:54]} 36. Rxd5 {[%clk 0:00:11.8]} 36...
Rxb2 {[%clk 0:01:54.4]} 37. Ne5 {[%clk 0:00:10.8]} 37... f6 {[%clk 0:01:54]} 38.
Nc4 {[%clk 0:00:09.4]} 38... Rxa2 {[%clk 0:01:52.7]} 39. Rd7 {[%clk 0:00:09.1]}
39... b5 {[%clk 0:01:51]} 40. Nd6 {[%clk 0:00:08.6]} 40... Rf8 {[%clk
0:01:45.7]} 41. Nf5 {[%clk 0:00:07.4]} 41... Rf7 {[%clk 0:01:46.1]} 42. Ne7+
{[%clk 0:00:05.4]} 42... Kh7 {[%clk 0:01:46.3]} 0-1

[Event "*** Titled Tuesday Blitz"]
[Site "Chess.com"]
[Date "2020.12.01"]
[Round "2"]
[White "misterlamine"]
[Black "vanea_03"]
[Result "0-1"]
[WhiteElo "2320"]
[BlackElo "2720"]
[TimeControl "180+1"]
[EndTime "10:16:32 PST"]
[Termination "vanea_03 won by resignation"]

1. d4 {[%clk 0:03:00.8]} 1... Nf6 {[%clk 0:02:58.7]} 2. c4 {[%clk 0:03:00.7]}
2... e6 {[%clk 0:02:59]} 3. Nf3 {[%clk 0:03:00]} 3... d5 {[%clk 0:02:58.1]} 4.
Nc3 {[%clk 0:03:00.2]} 4... a6 {[%clk 0:02:57.7]} 5. Bg5 {[%clk 0:02:49.4]} 5...
dxc4 {[%clk 0:02:54.7]} 6. a4 {[%clk 0:02:48.2]} 6... Nc6 {[%clk 0:02:49.4]} 7.
e4 {[%clk 0:02:44.3]} 7... Na5 {[%clk 0:02:49.8]} 8. e5 {[%clk 0:02:30.7]} 8...
h6 {[%clk 0:02:49.5]} 9. Bh4 {[%clk 0:02:30.3]} 9... g5 {[%clk 0:02:49.3]} 10.
Nxg5 {[%clk 0:02:29.6]} 10... hxg5 {[%clk 0:02:50]} 11. Bxg5 {[%clk 0:02:30.5]}
11... Be7 {[%clk 0:02:49]} 12. exf6 {[%clk 0:02:29.3]} 12... Bxf6 {[%clk
0:02:49.9]} 13. Bxf6 {[%clk 0:02:23.7]} 13... Qxf6 {[%clk 0:02:50.8]} 14. Be2
{[%clk 0:02:24]} 14... Bd7 {[%clk 0:02:23.9]} 15. Bf3 {[%clk 0:02:23.4]} 15...
O-O-O {[%clk 0:01:51.9]} 16. Ne4 {[%clk 0:02:08.6]} 16... Qe7 {[%clk 0:01:47.8]}
17. Nc5 {[%clk 0:02:05.9]} 17... Bc6 {[%clk 0:01:46.4]} 18. Bxc6 {[%clk
0:01:55.6]} 18... Nxc6 {[%clk 0:01:46.1]} 19. Qf3 {[%clk 0:01:52.7]} 19... Rxd4
{[%clk 0:01:36]} 20. b4 {[%clk 0:01:40.4]} 20... Qg5 {[%clk 0:01:05.9]} 21. O-O
{[%clk 0:01:31.7]} 21... Rf4 {[%clk 0:00:48.4]} 22. Qd1 {[%clk 0:01:26.9]} 22...
Rg4 {[%clk 0:00:39.5]} 23. Qf3 {[%clk 0:01:24.3]} 23... Rf4 {[%clk 0:00:30.3]}
24. Qd1 {[%clk 0:01:13.8]} 24... Rd8 {[%clk 0:00:30.5]} 25. Qc1 {[%clk
0:01:03.9]} 25... Nxb4 {[%clk 0:00:29.4]} 26. a5 {[%clk 0:00:58.5]} 26... Rdd4
{[%clk 0:00:16.3]} 27. Rb1 {[%clk 0:00:57.4]} 27... Qxc5 {[%clk 0:00:16.2]} 28.
Qb2 {[%clk 0:00:56.4]} 28... c3 {[%clk 0:00:16.7]} 29. Qe2 {[%clk 0:00:55.9]}
29... c2 {[%clk 0:00:15.1]} 0-1

[Event "*** Titled Tuesday Blitz"]
[Site "Chess.com"]
[Date "2020.12.01"]
[Round "2"]
[White "Triumphmate"]
[Black "nikitadovbnya2008"]
[Result "1-0"]
[WhiteElo "2407"]
[BlackElo "2162"]
[TimeControl "180+1"]
[EndTime "10:16:35 PST"]
[Termination "Triumphmate won by resignation"]

1. e4 {[%clk 0:03:00.5]} 1... c6 {[%clk 0:02:59.4]} 2. Nf3 {[%clk 0:03:00.6]}
2... d5 {[%clk 0:03:00.3]} 3. exd5 {[%clk 0:03:01.5]} 3... cxd5 {[%clk
0:03:01.2]} 4. d4 {[%clk 0:03:02.4]} 4... Nf6 {[%clk 0:03:01.1]} 5. Bd3 {[%clk
0:03:03.3]} 5... Nc6 {[%clk 0:03:01.4]} 6. c3 {[%clk 0:03:04.2]} 6... Bg4 {[%clk
0:03:01.5]} 7. Be3 {[%clk 0:03:05.1]} 7... e6 {[%clk 0:03:01.8]} 8. Nbd2 {[%clk
0:03:05.5]} 8... Bd6 {[%clk 0:03:01.4]} 9. O-O {[%clk 0:03:06.1]} 9... O-O
{[%clk 0:03:01.6]} 10. Qc2 {[%clk 0:03:06.6]} 10... Bh5 {[%clk 0:02:59]} 11.
Rae1 {[%clk 0:03:06.3]} 11... Rc8 {[%clk 0:02:58.9]} 12. a3 {[%clk 0:03:06.8]}
12... Bg6 {[%clk 0:02:58.7]} 13. Bg5 {[%clk 0:03:07.1]} 13... Qc7 {[%clk
0:02:57.3]} 14. Qb1 {[%clk 0:03:07]} 14... a6 {[%clk 0:02:55.6]} 15. Re2 {[%clk
0:03:06.3]} 15... b5 {[%clk 0:02:55.5]} 16. Rfe1 {[%clk 0:03:06.6]} 16... Na5
{[%clk 0:02:54.6]} 17. Ne5 {[%clk 0:03:06.3]} 17... Nc4 {[%clk 0:02:53]} 18.
Ndxc4 {[%clk 0:03:05.7]} 18... bxc4 {[%clk 0:02:50.2]} 19. Bxg6 {[%clk
0:03:06.2]} 19... hxg6 {[%clk 0:02:51.1]} 20. f4 {[%clk 0:03:03.8]} 20... Bxe5
{[%clk 0:02:46.7]} 21. fxe5 {[%clk 0:02:58.8]} 21... Ne4 {[%clk 0:02:46.5]} 22.
Rxe4 {[%clk 0:02:59.3]} 22... dxe4 {[%clk 0:02:47.1]} 23. Qxe4 {[%clk 0:03:00]}
23... Rb8 {[%clk 0:02:43.7]} 24. Bc1 {[%clk 0:02:55.3]} 24... f5 {[%clk
0:02:33.3]} 25. exf6 {[%clk 0:02:48.6]} 25... Rxf6 {[%clk 0:02:33.3]} 26. Bg5
{[%clk 0:02:49.1]} 26... Rf5 {[%clk 0:02:27]} 27. Qxe6+ {[%clk 0:02:32.2]} 27...
Qf7 {[%clk 0:02:26.4]} 28. Qxf7+ {[%clk 0:02:24.7]} 28... Kxf7 {[%clk
0:02:26.4]} 29. Bc1 {[%clk 0:02:19.6]} 29... g5 {[%clk 0:02:20.5]} 30. g4 {[%clk
0:02:18.3]} 30... Rd5 {[%clk 0:02:17.3]} 31. Kg2 {[%clk 0:02:15.1]} 31... Rb6
{[%clk 0:02:11.6]} 32. Re4 {[%clk 0:01:57.4]} 32... Re6 {[%clk 0:02:07.7]} 33.
Kf3 {[%clk 0:01:57.8]} 33... g6 {[%clk 0:01:57.4]} 34. h3 {[%clk 0:01:54.8]}
34... a5 {[%clk 0:01:56.8]} 35. Bd2 {[%clk 0:01:43.3]} 35... Rf6+ {[%clk
0:01:54.6]} 36. Ke2 {[%clk 0:01:41]} 36... Rb6 {[%clk 0:01:51.7]} 37. Bc1 {[%clk
0:01:39.9]} 37... Re6 {[%clk 0:01:48.7]} 38. Ke3 {[%clk 0:01:39.9]} 38... Rd8
{[%clk 0:01:42.9]} 39. Rxe6 {[%clk 0:01:34.3]} 39... Kxe6 {[%clk 0:01:43.8]} 40.
Ke4 {[%clk 0:01:35.2]} 40... Rd5 {[%clk 0:01:39.3]} 41. a4 {[%clk 0:01:28.1]}
41... Kd6 {[%clk 0:01:35.7]} 42. b3 {[%clk 0:01:09.2]} 42... cxb3 {[%clk
0:01:34.5]} 43. c4 {[%clk 0:01:09.6]} 43... Rc5 {[%clk 0:01:05.7]} 44. Ba3
{[%clk 0:00:58.7]} 44... b2 {[%clk 0:01:00.7]} 45. dxc5+ {[%clk 0:00:57.8]}
45... Kc6 {[%clk 0:01:00.9]} 46. Bxb2 {[%clk 0:00:58.1]} 46... Kxc5 {[%clk
0:01:01.6]} 47. Kd3 {[%clk 0:00:57]} 47... Kb4 {[%clk 0:01:01.8]} 48. Bc3+
{[%clk 0:00:54]} 48... Kxa4 {[%clk 0:01:01.7]} 49. Kd4 {[%clk 0:00:54.7]} 1-0

[Event "*** Titled Tuesday Blitz"]
[Site "Chess.com"]
[Date "2020.12.01"]
[Round "2"]
[White "youngKID"]
[Black "Artyom_ChessMate"]
[Result "1-0"]
[WhiteElo "2845"]
[BlackElo "2534"]
[TimeControl "180+1"]
[EndTime "10:16:38 PST"]
[Termination "youngKID won by resignation"]

1. e4 {[%clk 0:03:00.5]} 1... c5 {[%clk 0:02:57.9]} 2. Nf3 {[%clk 0:03:00.3]}
2... d6 {[%clk 0:02:58.3]} 3. d4 {[%clk 0:02:59.7]} 3... cxd4 {[%clk 0:02:59.2]}
4. Nxd4 {[%clk 0:03:00.6]} 4... Nf6 {[%clk 0:02:59.1]} 5. Nc3 {[%clk 0:03:01.2]}
5... g6 {[%clk 0:02:59.6]} 6. Be3 {[%clk 0:03:00.4]} 6... Bg7 {[%clk 0:03:00]}
7. Be2 {[%clk 0:03:01.1]} 7... O-O {[%clk 0:03:00.2]} 8. Qd2 {[%clk 0:03:01.8]}
8... Ng4 {[%clk 0:02:28.8]} 9. Bxg4 {[%clk 0:03:00.5]} 9... Bxg4 {[%clk
0:02:29.7]} 10. f3 {[%clk 0:03:00.8]} 10... Be6 {[%clk 0:02:27.5]} 11. Bh6
{[%clk 0:02:59]} 11... Nc6 {[%clk 0:02:23.8]} 12. Bxg7 {[%clk 0:02:52.9]} 12...
Kxg7 {[%clk 0:02:24.7]} 13. h4 {[%clk 0:02:52.7]} 13... Qb6 {[%clk 0:02:17.8]}
14. Nxc6 {[%clk 0:02:51]} 14... bxc6 {[%clk 0:02:15]} 15. h5 {[%clk 0:02:50.6]}
15... Kg8 {[%clk 0:01:59.1]} 16. Qh6 {[%clk 0:01:58.1]} 16... Qxb2 {[%clk
0:01:24.4]} 17. Kd2 {[%clk 0:01:56.8]} 17... g5 {[%clk 0:01:24.9]} 18. Qxg5+
{[%clk 0:01:56.1]} 18... Kh8 {[%clk 0:01:25.3]} 19. Qxe7 {[%clk 0:01:50.9]}
19... h6 {[%clk 0:01:06.7]} 20. Qf6+ {[%clk 0:01:43.2]} 20... Kh7 {[%clk
0:01:06.4]} 21. Rab1 {[%clk 0:01:38.8]} 21... Qa3 {[%clk 0:01:05.7]} 22. Rb7
{[%clk 0:01:39]} 22... Rab8 {[%clk 0:00:48.3]} 23. Qg6+ {[%clk 0:01:35.4]} 23...
Kh8 {[%clk 0:00:44.5]} 24. Qxh6+ {[%clk 0:01:35.2]} 24... Kg8 {[%clk 0:00:45]}
25. Qg5+ {[%clk 0:01:33]} 25... Kh8 {[%clk 0:00:45.3]} 26. Qf6+ {[%clk
0:01:29.5]} 26... Kh7 {[%clk 0:00:44.4]} 27. Rhb1 {[%clk 0:01:22.7]} 27... Rxb7
{[%clk 0:00:21.8]} 28. Rxb7 {[%clk 0:01:23.6]} 28... Qa6 {[%clk 0:00:21.7]} 29.
Re7 {[%clk 0:01:14.3]} 29... Qc4 {[%clk 0:00:16.4]} 30. g4 {[%clk 0:01:01.4]}
30... Rg8 {[%clk 0:00:16.3]} 31. g5 {[%clk 0:00:58.3]} 1-0